fUSD/lending_fUSD_20250811
["ID","MTS","AMOUNT","RATE_DAILY","PERIOD"]
[378583670,1754917846177,-400.0,0.00016618,2]
[378583672,1754917846187,-400.0,0.00016618,2]
[378583674,1754917846196,-400.0,0.00016618,2]
[378583676,1754917846205,-400.0,0.00016618,2]
[378583678,1754917846215,-400.0,0.00016618,2]
[378583680,1754917846224,-488.15,0.00016618,2]
[378583682,1754917846234,-447.87,0.00016618,2]
[378583684,1754917846243,-898.11,0.00016618,2]
[378583686,1754917846252,-400.0,0.00016618,2]
[378583688,1754917846262,-400.0,0.00016618,2]
[378583690,1754917846271,-1013.07,0.00016618,2]
[378583692,1754917846280,-406.33,0.00016618,2]
[378583694,1754917846289,-400.0,0.00016618,2]
[378583696,1754917846299,-480.53,0.00016618,2]
[378583698,1754917846308,-499.3,0.00016618,2]
[378583700,1754917846317,-719.96,0.00016618,2]
[378583701,1754917846326,-400.0,0.00016618,2]
[378583703,1754917846335,-400.0,0.00016618,2]
[378583705,1754917846344,-400.0,0.00016618,2]
[378583707,1754917846353,-603.87,0.00016618,2]
[378583708,1754917846363,-400.0,0.00016618,2]
[378583711,1754917846372,-400.0,0.00016618,2]
[378583713,1754917846382,-400.0,0.00016618,2]
[378583714,1754917846392,-400.0,0.00016618,2]
[378583716,1754917846401,-647.84,0.00016618,2]
[378583718,1754917846411,-400.0,0.00016618,2]
[378583720,1754917846421,-400.0,0.00016618,2]
[378583722,1754917846432,-400.0,0.00016618,2]
[378583724,1754917846442,-536.36,0.00016618,2]
[378583727,1754917846452,-400.0,0.00016618,2]
[378583728,1754917846461,-400.0,0.00016618,2]
[378583731,1754917846471,-400.0,0.00016618,2]
[378583733,1754917846481,-926.15,0.00016618,2]
[378583735,1754917846490,-400.0,0.00016618,2]
[378583736,1754917846499,-1000.0,0.00016618,2]
[378583738,1754917846509,-400.0,0.00016618,2]
[378583740,1754917846518,-501.83,0.00016618,2]
[378583743,1754917846527,-463.31397545,0.00016618,2]
[378583744,1754917846537,-1375.87,0.00016618,2]
[378583746,1754917846546,-400.0,0.00016618,2]
[378583748,1754917846556,-560.72,0.00016618,2]
[378583751,1754917846566,-400.0,0.00016618,2]
[378583753,1754917846575,-400.0,0.00016618,2]
[378583755,1754917846586,-1887.81,0.00016618,2]
[378583757,1754917846595,-400.0,0.00016618,2]
[378583759,1754917846606,-429.95,0.00016618,2]
[378583760,1754917846615,-400.0,0.00016618,2]
[378583762,1754917846625,-400.0,0.00016618,2]
[378583764,1754917846635,-400.0,0.00016618,2]
[378583766,1754917846644,-400.0,0.00016618,2]
[378583768,1754917846654,-678.48,0.00016618,2]
[378583770,1754917846663,-442.08,0.00016618,2]
[378583772,1754917846672,-521.45,0.00016618,2]
[378583774,1754917846684,-400.0,0.00016618,2]
[378583776,1754917846693,-400.0,0.00016618,2]
[378583779,1754917846703,-400.0,0.00016618,2]
[378583780,1754917846712,-400.0,0.00016618,2]
[378583783,1754917846722,-577.05,0.00016618,2]
[378583785,1754917846731,-400.0,0.00016618,2]
[378583786,1754917846741,-400.0,0.00016618,2]
[378583789,1754917846751,-1015.96,0.00016618,2]
[378583791,1754917846760,-405.10165736,0.00016618,2]
[378583792,1754917846771,-400.0,0.00016618,2]
[378583794,1754917846780,-733.51,0.00016618,2]
[378583796,1754917846790,-400.0,0.00016618,2]
[378583798,1754917846800,-421.0,0.00016618,2]
[378583801,1754917846810,-400.0,0.00016618,2]
[378583803,1754917846820,-622.29,0.00016618,2]
[378583805,1754917846830,-418.02,0.00016618,2]
[378583807,1754917846841,-400.0,0.00016618,2]
[378583834,1754917847106,-400.0,0.00016618,2]
[378583837,1754917847116,-401.69,0.00016618,2]
[378583839,1754917847126,-400.0,0.00016618,2]
[378583841,1754917847135,-473.08,0.00016618,2]
[378583843,1754917847144,-998.32,0.00016618,2]
[378583845,1754917847154,-400.0,0.00016618,2]
[378583847,1754917847163,-1116.79,0.00016618,2]
[378583849,1754917847173,-400.0,0.00016618,2]
[378583851,1754917847183,-958.35,0.00016618,2]
[378583853,1754917847193,-400.0,0.00016618,2]
[378583855,1754917847202,-400.0,0.00016618,2]
[378583857,1754917847212,-1176.48,0.00016618,2]
[378583859,1754917847222,-615.79,0.00016618,2]
[378583861,1754917847231,-400.0,0.00016618,2]
[378583863,1754917847240,-400.0,0.00016618,2]
[378583865,1754917847250,-400.0,0.00016618,2]
[378583867,1754917847259,-400.0,0.00016618,2]
[378583869,1754917847269,-365.77587479,0.00016618,2]
[378583871,1754917847279,-400.0,0.00016618,2]
[378583873,1754917847288,-400.0,0.00016618,2]
[378583875,1754917847297,-400.0,0.00016618,2]
[378583877,1754917847307,-400.0,0.00016618,2]
[378583879,1754917847316,-400.0,0.00016618,2]
[378583881,1754917847325,-400.0,0.00016618,2]
[378583883,1754917847335,-400.0,0.00016618,2]
[378583885,1754917847344,-273.45121499,0.00016618,2]
[378583892,1754917847402,-126.54878501,0.00016618,2]
[378583893,1754917847412,-621.53,0.00016618,2]
[378583895,1754917847421,-132.71414701,0.00016618,2]
[378583937,1754917847815,-267.28585299,0.00016618,2]
[378583939,1754917847824,-486.54,0.00016618,2]
[378583941,1754917847834,-400.0,0.00016618,2]
[378583943,1754917847844,-400.0,0.00016618,2]
[378583945,1754917847853,-400.0,0.00016618,2]
[378583947,1754917847862,-495.93,0.00016618,2]
[378583949,1754917847872,-400.0,0.00016618,2]
[378583951,1754917847881,-500.91,0.00016618,2]
[378583952,1754917847892,-400.0,0.00016618,2]
[378583954,1754917847902,-540.43,0.00016618,2]
[378583956,1754917847911,-488.21,0.00016618,2]
[378583958,1754917847921,-462.29,0.00016618,2]
[378583960,1754917847931,-376.39260867,0.00016618,2]
[378583962,1754917847940,-400.0,0.00016618,2]
[378583964,1754917847950,-453.32968318,0.00016618,2]
[378583966,1754917847960,-424.6,0.00016618,2]
[378583967,1754917847969,-400.0,0.00016618,2]
[378583969,1754917847979,-652.1,0.00016618,2]
[378583971,1754917847989,-400.0,0.00016618,2]
[378583973,1754917847998,-400.0,0.00016618,2]
[378583975,1754917848007,-408.32,0.00016618,2]
[378583977,1754917848016,-400.0,0.00016618,2]
[378583979,1754917848026,-833.27,0.00016618,2]
[378583981,1754917848036,-417.07,0.00016618,2]
[378583983,1754917848046,-400.0,0.00016618,2]
[378583985,1754917848055,-498.6,0.00016618,2]
[378583987,1754917848065,-400.0,0.00016618,2]
[378583989,1754917848074,-546.36,0.00016618,2]
[378583990,1754917848085,-345.99,0.00016618,2]
[378583992,1754917848094,-808.63,0.00016618,2]
[378583994,1754917848104,-707.75,0.00016618,2]
[378583996,1754917848114,-400.0,0.00016618,2]
[378583998,1754917848124,-400.0,0.00016618,2]
[378584000,1754917848135,-165.90775866,0.00016618,2]
[378584002,1754917848145,-400.0,0.00016618,2]
[378584004,1754917848156,-669.01,0.00016618,2]
[378584006,1754917848165,-400.0,0.00016618,2]
[378584008,1754917848175,-253.4691746,0.00016618,2]
[378584010,1754917848187,-400.0,0.00016618,2]
[378584012,1754917848197,-400.0,0.00016618,2]
[378584014,1754917848208,-400.0,0.00016618,2]
[378584016,1754917848218,-400.0,0.00016618,2]
[378584018,1754917848229,-1209.45,0.00016618,2]
[378584020,1754917848239,-902.79,0.00016618,2]
[378584021,1754917848250,-400.0,0.00016618,2]
[378584024,1754917848261,-400.0,0.00016618,2]
[378584025,1754917848271,-400.0,0.00016618,2]
[378584027,1754917848282,-400.0,0.00016618,2]
[378584029,1754917848292,-742.44,0.00016618,2]
[378584031,1754917848302,-400.0,0.00016618,2]
[378584033,1754917848313,-400.0,0.00016618,2]
[378584035,1754917848323,-1024.95,0.00016618,2]
[378584037,1754917848334,-400.0,0.00016618,2]
[378584039,1754917848343,-400.0,0.00016618,2]
[378584041,1754917848354,-762.85,0.00016618,2]
[378584043,1754917848364,-518.24,0.00016618,2]
[378584045,1754917848374,-400.0,0.00016618,2]
[378584047,1754917848384,-400.0,0.00016618,2]
[378584049,1754917848394,-400.0,0.00016618,2]
[378584051,1754917848404,-762.95,0.00016618,2]
[378584053,1754917848414,-400.0,0.00016618,2]
[378584055,1754917848423,-588.51,0.00016618,2]
[378584057,1754917848434,-2289.6,0.00016618,2]
[378584059,1754917848444,-425.98,0.00016618,2]
[378584061,1754917848453,-966.02,0.00016618,2]
[378584063,1754917848463,-592.8,0.00016618,2]
[378584064,1754917848473,-867.09,0.00016618,2]
[378584066,1754917848483,-624.48,0.00016618,2]
[378584068,1754917848493,-1032.77,0.00016618,2]
[378584070,1754917848503,-486.65115855,0.00016618,2]
[378584072,1754917848513,-400.0,0.00016618,2]
[378584074,1754917848523,-400.0,0.00016618,2]
[378584076,1754917848533,-499.97,0.00016618,2]
[378584078,1754917848549,-400.0,0.00016618,2]
[378584080,1754917848560,-400.0,0.00016618,2]
[378584082,1754917848570,-400.0,0.00016618,2]
[378584083,1754917848579,-400.0,0.00016618,2]
[378584085,1754917848588,-1140.6,0.00016618,2]
[378584087,1754917848598,-643.96,0.00016618,2]
[378584089,1754917848608,-400.0,0.00016618,2]
[378584091,1754917848617,-400.0,0.00016618,2]
[378584093,1754917848627,-834.81,0.00016618,2]
[378584095,1754917848636,-530.57,0.00016618,2]
[378584097,1754917848647,-400.0,0.00016618,2]
[378584099,1754917848656,-263.70325008,0.00016618,2]
[378584101,1754917848666,-628.0,0.00016618,2]
[378584103,1754917848675,-400.0,0.00016618,2]
[378584104,1754917848686,-400.0,0.00016618,2]
[378584106,1754917848695,-400.0,0.00016618,2]
[378584108,1754917848706,-428.7,0.00016618,2]
[378584110,1754917848715,-756.12,0.00016618,2]
[378584112,1754917848725,-400.0,0.00016618,2]
[378584114,1754917848735,-609.36,0.00016618,2]
[378584116,1754917848745,-653.25,0.00016618,2]
[378584118,1754917848755,-400.0,0.00016618,2]
[378584120,1754917848764,-400.0,0.00016618,2]
[378584122,1754917848774,-400.0,0.00016618,2]
[378584124,1754917848784,-400.0,0.00016618,2]
[378584126,1754917848793,-627.27,0.00016618,2]
[378584127,1754917848803,-1512.62,0.00016618,2]
[378584129,1754917848813,-1278.99,0.00016618,2]
[378584131,1754917848822,-400.0,0.00016618,2]
[378584133,1754917848833,-907.37,0.00016618,2]
[378584135,1754917848843,-540.48928167,0.00016618,2]
[378584137,1754917848853,-500.0,0.00016618,2]
[378584139,1754917848863,-400.0,0.00016618,2]
[378584141,1754917848873,-400.0,0.00016618,2]
[378584143,1754917848882,-474.18,0.00016618,2]
[378584145,1754917848896,-539.64,0.00016618,2]
[378584147,1754917848906,-400.0,0.00016618,2]
[378584149,1754917848916,-891.47,0.00016618,2]
[378584151,1754917848926,-518.18,0.00016618,2]
[378584152,1754917848937,-400.0,0.00016618,2]
[378584154,1754917848947,-400.0,0.00016618,2]
[378584156,1754917848958,-799.95,0.00016618,2]
[378584168,1754917849066,-400.0,0.00016618,2]
[378584170,1754917849076,-400.0,0.00016618,2]
[378584172,1754917849085,-1607.95,0.00016618,2]
[378584173,1754917849095,-400.0,0.00016618,2]
[378584175,1754917849104,-400.0,0.00016618,2]
[378584177,1754917849114,-939.84,0.00016618,2]
[378584179,1754917849123,-400.0,0.00016618,2]
[378584181,1754917849133,-400.0,0.00016618,2]
[378584183,1754917849142,-400.0,0.00016618,2]
[378584185,1754917849152,-400.0,0.00016618,2]
[378584187,1754917849161,-1032.0,0.00016618,2]
[378584189,1754917849170,-400.0,0.00016618,2]
[378584191,1754917849182,-567.29,0.00016618,2]
[378584193,1754917849191,-400.0,0.00016618,2]
[378584195,1754917849201,-772.23,0.00016618,2]
[378584196,1754917849210,-400.0,0.00016618,2]
[378584198,1754917849219,-1975.6,0.00016618,2]
[378584200,1754917849229,-400.0,0.00016618,2]
[378584202,1754917849238,-985.08,0.00016618,2]
[378584204,1754917849247,-2580.57,0.00016618,2]
[378584206,1754917849256,-400.0,0.00016618,2]
[378584208,1754917849266,-1007.45,0.00016618,2]
[378584210,1754917849275,-400.0,0.00016618,2]
[378584212,1754917849284,-400.0,0.00016618,2]
[378584214,1754917849294,-400.0,0.00016618,2]
[378584216,1754917849303,-400.0,0.00016618,2]
[378584218,1754917849313,-400.0,0.00016618,2]
[378584220,1754917849322,-400.0,0.00016618,2]
[378584221,1754917849331,-1703.12,0.00016618,2]
[378584223,1754917849340,-1127.11,0.00016618,2]
[378584225,1754917849350,-500.0,0.00016618,2]
[378584227,1754917849360,-400.0,0.00016618,2]
[378584229,1754917849369,-960.2,0.00016618,2]
[378584231,1754917849379,-2606.37,0.00016618,2]
[378584233,1754917849388,-1435.91,0.00016618,2]
[378584235,1754917849397,-489.98,0.00016618,2]
[378584237,1754917849407,-598.45,0.00016618,2]
[378584239,1754917849416,-566.24,0.00016618,2]
[378584241,1754917849425,-403.62534989,0.00016618,2]
[378584243,1754917849436,-425.87,0.00016618,2]
[378584245,1754917849445,-400.0,0.00016618,2]
[378584247,1754917849454,-804.33,0.00016618,2]
[378584249,1754917849464,-2136.97,0.00016618,2]
[378584251,1754917849473,-1216.37,0.00016618,2]
[378584252,1754917849482,-489.44,0.00016618,2]
[378584254,1754917849491,-400.0,0.00016618,2]
[378584256,1754917849501,-1116.4,0.00016618,2]
[378584258,1754917849510,-400.0,0.00016618,2]
[378584260,1754917849519,-676.48,0.00016618,2]
[378584262,1754917849528,-400.0,0.00016618,2]
[378584264,1754917849538,-601.24,0.00016618,2]
[378584266,1754917849547,-400.0,0.00016618,2]
[378584268,1754917849556,-1065.9,0.00016618,2]
[378584270,1754917849565,-400.0,0.00016618,2]
[378584272,1754917849575,-400.0,0.00016618,2]
[378584274,1754917849584,-1726.95,0.00016618,2]
[378584276,1754917849593,-400.0,0.00016618,2]
[378584277,1754917849602,-1261.53,0.00016618,2]
[378584279,1754917849612,-681.34,0.00016618,2]
[378584281,1754917849621,-400.0,0.00016618,2]
[378584283,1754917849632,-500.0,0.00016618,2]
[378584285,1754917849641,-400.0,0.00016618,2]
[378584287,1754917849650,-400.0,0.00016618,2]
[378584289,1754917849660,-400.0,0.00016618,2]
[378584291,1754917849669,-1075.53,0.00016618,2]
[378584293,1754917849679,-795.92,0.00016618,2]
[378584295,1754917849688,-400.0,0.00016618,2]
[378584297,1754917849697,-400.0,0.00016618,2]
[378584299,1754917849706,-674.23,0.00016618,2]
[378584301,1754917849716,-400.0,0.00016618,2]
[378584303,1754917849725,-409.36,0.00016618,2]
[378584305,1754917849736,-400.0,0.00016618,2]
[378584307,1754917849745,-400.0,0.00016618,2]
[378584309,1754917849754,-808.81,0.00016618,2]
[378584311,1754917849763,-893.34,0.00016618,2]
[378584312,1754917849772,-400.0,0.00016618,2]
[378584314,1754917849781,-400.0,0.00016618,2]
[378584316,1754917849790,-3729.35,0.00016618,2]
[378584318,1754917849799,-1644.02,0.00016618,2]
[378584320,1754917849808,-2265.19,0.00016618,2]
[378584322,1754917849817,-400.0,0.00016618,2]
[378584324,1754917849826,-446.44,0.00016618,2]
[378584326,1754917849836,-400.0,0.00016618,2]
[378584328,1754917849845,-400.0,0.00016618,2]
[378584330,1754917849854,-2786.49,0.00016618,2]
[378584332,1754917849863,-680.92,0.00016618,2]
[378584334,1754917849873,-1206.68,0.00016618,2]
[378584335,1754917849882,-400.0,0.00016618,2]
[378584337,1754917849895,-792.77,0.00016618,2]
[378584339,1754917849905,-2323.34,0.00016618,2]
[378584341,1754917849914,-1065.99,0.00016618,2]
[378584343,1754917849924,-411.43535129,0.00016618,2]
[378584345,1754917849935,-1005.4,0.00016618,2]
[378584347,1754917849945,-400.0,0.00016618,2]
[378584349,1754917849954,-400.0,0.00016618,2]
[378584351,1754917849963,-400.0,0.00016618,2]
[378584353,1754917849974,-2257.76,0.00016618,2]
[378584355,1754917849983,-400.0,0.00016618,2]
[378584357,1754917849992,-400.0,0.00016618,2]
[378584359,1754917850002,-400.0,0.00016618,2]
[378584361,1754917850011,-400.0,0.00016618,2]
[378584363,1754917850020,-400.0,0.00016618,2]
[378584365,1754917850029,-919.96,0.00016618,2]
[378584367,1754917850038,-1310.45,0.00016618,2]
[378584368,1754917850047,-480.04,0.00016618,2]
[378584370,1754917850056,-994.59,0.00016618,2]
[378584372,1754917850065,-1223.39,0.00016618,2]
[378584374,1754917850074,-400.0,0.00016618,2]
[378584376,1754917850083,-400.0,0.00016618,2]
[378584378,1754917850093,-400.0,0.00016618,2]
[378584380,1754917850102,-400.0,0.00016618,2]
[378584382,1754917850112,-469.94,0.00016618,2]
[378584384,1754917850122,-875.86,0.00016618,2]
[378584386,1754917850131,-479.1,0.00016618,2]
[378584388,1754917850140,-1313.78,0.00016618,2]
[378584390,1754917850150,-400.0,0.00016618,2]
[378584391,1754917850159,-361.10467599,0.00016618,2]
[378584393,1754917850169,-1607.63,0.00016618,2]
[378584395,1754917850178,-1384.79,0.00016618,2]
[378584396,1754917850188,-615.52,0.00016618,2]
[378584397,1754917850198,-202.15003331,0.00016618,2]
[378584398,1754917850207,-1006.2,0.00016618,2]
[378584399,1754917850216,-400.0,0.00016618,2]
[378584400,1754917850226,-1349.66,0.00016618,2]
[378584401,1754917850235,-400.0,0.00016618,2]
[378584402,1754917850245,-400.0,0.00016618,2]
[378584403,1754917850255,-400.0,0.00016618,2]
[378584404,1754917850265,-497.17,0.00016618,2]
[378584405,1754917850274,-400.0,0.00016618,2]
[378584406,1754917850283,-400.0,0.00016618,2]
[378584407,1754917850293,-2040.53,0.00016618,2]
[378584408,1754917850302,-612.71,0.00016618,2]
[378584409,1754917850312,-930.28,0.00016618,2]
[378584410,1754917850321,-400.0,0.00016618,2]
[378584411,1754917850331,-400.0,0.00016618,2]
[378584412,1754917850340,-737.27,0.00016618,2]
[378584413,1754917850349,-1429.07,0.00016618,2]
[378584414,1754917850363,-457.28,0.00016618,2]
[378584415,1754917850373,-1053.32,0.00016618,2]
[378584416,1754917850382,-1103.91,0.00016618,2]
[378584417,1754917850392,-400.0,0.00016618,2]
[378584418,1754917850401,-400.0,0.00016618,2]
[378584419,1754917850410,-3005.6,0.00016618,2]
[378584420,1754917850420,-400.0,0.00016618,2]
[378584421,1754917850429,-400.0,0.00016618,2]
[378584423,1754917850439,-400.0,0.00016618,2]
[378584425,1754917850448,-400.0,0.00016618,2]
[378584427,1754917850457,-400.0,0.00016618,2]
[378584429,1754917850466,-400.0,0.00016618,2]
[378584431,1754917850476,-500.0,0.00016618,2]
[378584433,1754917850485,-1674.1,0.00016618,2]
[378584435,1754917850494,-2292.44,0.00016618,2]
[378584437,1754917850503,-400.0,0.00016618,2]
[378584439,1754917850513,-400.0,0.00016618,2]
[378584441,1754917850522,-400.0,0.00016618,2]
[378584443,1754917850531,-400.0,0.00016618,2]
[378584445,1754917850540,-400.0,0.00016618,2]
[378584447,1754917850549,-1230.06,0.00016618,2]
[378584449,1754917850559,-4512.93,0.00016618,2]
[378584451,1754917850568,-3452.98,0.00016618,2]
[378584453,1754917850577,-400.0,0.00016618,2]
[378584455,1754917850586,-400.0,0.00016618,2]
[378584457,1754917850595,-652.66,0.00016618,2]
[378584459,1754917850605,-1456.73,0.00016618,2]
[378584461,1754917850613,-400.0,0.00016618,2]
[378584463,1754917850623,-403.21,0.00016618,2]
[378584465,1754917850632,-983.62,0.00016618,2]
[378584467,1754917850641,-400.0,0.00016618,2]
[378584469,1754917850650,-539.68,0.00016618,2]
[378584471,1754917850659,-400.0,0.00016618,2]
[378584472,1754917850671,-400.0,0.00016618,2]
[378584474,1754917850681,-1688.7,0.00016618,2]
[378584476,1754917850691,-520.48716196,0.00016619,2]
[378584478,1754917850701,-400.0,0.00016619,2]
[378584481,1754917850718,-156.49590838,0.00016619,2]
[378584483,1754917850730,-403.33784259,0.00016619,2]
[378584485,1754917850740,-466.03752365,0.00016619,2]
[378584487,1754917850750,-400.0,0.00016619,2]
[378584489,1754917850759,-400.0,0.00016619,2]
[378584491,1754917850768,-400.0,0.00016619,2]
[378584493,1754917850777,-400.0,0.00016619,2]
[378584495,1754917850786,-402.26142091,0.00016619,2]
[378584496,1754917850795,-401.25155903,0.00016619,2]
[378584498,1754917850804,-400.0,0.00016619,2]
[378584501,1754917850814,-400.0,0.00016619,2]
[378584502,1754917850823,-400.0,0.00016619,2]
[378584504,1754917850832,-400.0,0.00016619,2]
[378584506,1754917850842,-400.0,0.00016619,2]
[378584508,1754917850852,-546.95335409,0.00016619,2]
[378584510,1754917850861,-400.0,0.00016619,2]
[378584512,1754917850870,-400.0,0.00016619,2]
[378584514,1754917850880,-500.0,0.00016619,2]
[378584517,1754917850891,-400.0,0.00016619,2]
[378584519,1754917850902,-400.0,0.00016619,2]
[378584521,1754917850912,-400.0,0.00016619,2]
[378584523,1754917850922,-401.18411574,0.00016619,2]
[378584525,1754917850933,-174.72425051,0.00016619,2]
[378584527,1754917850942,-400.0,0.00016619,2]
[378584528,1754917850951,-400.0,0.00016619,2]
[378584530,1754917850961,-400.0,0.00016619,2]
[378584532,1754917850971,-400.0,0.00016619,2]
[378584534,1754917850980,-400.0,0.00016619,2]
[378584536,1754917850990,-422.75739179,0.00016619,2]
[378584538,1754917850999,-400.0,0.00016619,2]
[378584540,1754917851009,-400.0,0.00016619,2]
[378584542,1754917851018,-400.0,0.00016619,2]
[378584545,1754917851028,-400.0,0.00016619,2]
[378584547,1754917851037,-1033.34,0.00016619,2]
[378584548,1754917851047,-500.0,0.00016619,2]
[378584551,1754917851056,-689.52,0.00016619,2]
[378584553,1754917851066,-163.291857,0.00016619,2]
[378584554,1754917851075,-534.36,0.00016619,2]
[378584556,1754917851084,-400.0,0.00016619,2]
[378584558,1754917851093,-539.9,0.00016619,2]
[378584560,1754917851103,-400.0,0.00016619,2]
[378584562,1754917851112,-466.84,0.00016619,2]
[378584564,1754917851122,-400.0,0.00016619,2]
[378584566,1754917851132,-400.0,0.00016619,2]
[378584568,1754917851142,-976.16,0.00016619,2]
[378584570,1754917851151,-400.0,0.00016619,2]
[378584572,1754917851161,-400.0,0.00016619,2]
[378584575,1754917851171,-839.49,0.00016619,2]
[378584577,1754917851180,-400.0,0.00016619,2]
[378584578,1754917851190,-400.0,0.00016619,2]
[378584580,1754917851199,-400.0,0.00016619,2]
[378584582,1754917851208,-400.0,0.00016619,2]
[378584584,1754917851217,-400.0,0.00016619,2]
[378584586,1754917851227,-718.72,0.00016619,2]
[378584588,1754917851236,-400.0,0.00016619,2]
[378584591,1754917851246,-1199.89,0.00016619,2]
[378584592,1754917851255,-400.0,0.00016619,2]
[378584594,1754917851264,-1599.63,0.00016619,2]
[378584597,1754917851274,-1566.51,0.00016619,2]
[378584599,1754917851284,-942.13,0.00016619,2]
[378584601,1754917851293,-1013.55,0.00016619,2]
[378584602,1754917851303,-557.31,0.00016619,2]
[378584604,1754917851312,-818.77,0.00016619,2]
[378584606,1754917851321,-794.42,0.00016619,2]
[378584609,1754917851332,-988.44,0.00016619,2]
[378584611,1754917851342,-436.27,0.00016619,2]
[378584613,1754917851351,-1268.67,0.00016619,2]
[378584614,1754917851360,-1592.48,0.00016619,2]
[378584616,1754917851369,-682.92,0.00016619,2]
[378584618,1754917851379,-2002.7,0.00016619,2]
[378584620,1754917851388,-591.92,0.00016619,2]
[378584622,1754917851397,-608.77,0.00016619,2]
[378584624,1754917851406,-562.97,0.00016619,2]
[378584626,1754917851415,-500.0,0.00016619,2]
[378584628,1754917851424,-626.6,0.00016619,2]
[378584630,1754917851434,-500.0,0.00016619,2]
[378584632,1754917851444,-663.56,0.00016619,2]
[378584634,1754917851453,-1991.48,0.00016619,2]
[378584636,1754917851462,-2955.53,0.00016619,2]
[378584638,1754917851471,-400.0,0.00016619,2]
[378584640,1754917851480,-512.23,0.00016619,2]
[378584642,1754917851490,-1283.61,0.00016619,2]
[378584644,1754917851500,-927.3,0.00016619,2]
[378584646,1754917851509,-400.0,0.00016619,2]
[378584648,1754917851519,-1594.83,0.00016619,2]
[378584650,1754917851530,-786.4,0.00016619,2]
[378584652,1754917851539,-837.94,0.00016619,2]
[378584654,1754917851549,-6171.89,0.00016619,2]
[378584656,1754917851558,-1131.29,0.00016619,2]
[378584658,1754917851568,-500.0,0.00016619,2]
[378584660,1754917851577,-1520.36,0.00016619,2]
[378584662,1754917851587,-996.06,0.00016619,2]
[378584664,1754917851598,-931.96,0.00016619,2]
[378584666,1754917851607,-500.0,0.00016619,2]
[378584668,1754917851616,-957.56,0.00016619,2]
[378584670,1754917851626,-652.86,0.00016619,2]
[378584672,1754917851636,-300.0,0.00016619,2]
[378584674,1754917851645,-500.79,0.00016619,2]
[378584676,1754917851655,-748.54,0.00016619,2]
[378584678,1754917851664,-1071.04,0.00016619,2]
[378584680,1754917851674,-815.7,0.00016619,2]
[378584682,1754917851687,-400.0,0.00016619,2]
[378584684,1754917851696,-1717.5,0.00016619,2]
[378584686,1754917851706,-1547.64,0.00016619,2]
[378584688,1754917851715,-1868.32,0.00016619,2]
[378584690,1754917851724,-646.03,0.00016619,2]
[378584692,1754917851734,-789.82,0.00016619,2]
[378584694,1754917851743,-670.38,0.00016619,2]
[378584696,1754917851752,-834.44,0.00016619,2]
[378584698,1754917851762,-2382.8,0.00016619,2]
[378584700,1754917851771,-400.0,0.00016619,2]
[378584702,1754917851780,-769.96,0.00016619,2]